bitfinex/quotes_SOLUSD_20250131
["timestamp","ask_amount","ask_price","bid_price","bid_amount"]
[1738339072312,1.5671,240.43,240.35,325.41184853]
[1738339072982,1.5671,240.43,240.35,13.41184853]
[1738339073381,1.5671,240.43,240.31,0.03]
[1738339073606,0.77992389,240.42,240.31,0.03]
[1738339073791,1.5671,240.43,240.31,13.44184853]
[1738339074312,1.5671,240.43,240.32,0.12549]
[1738339075426,1.5671,240.43,240.31,0.03]
[1738339076227,0.77997291,240.42,240.31,0.03]
[1738339077223,2.44551191,240.42,240.31,0.03]
[1738339079850,6.2778,240.41,240.31,0.03]
[1738339080050,0.78009486,240.4,240.31,0.03]
[1738339080524,20.0,240.38,240.31,0.03]
[1738339080724,0.7801534,240.37,240.31,0.03]
[1738339081716,0.7801534,240.37,240.26,0.03]
[1738339081717,1.6416,240.36,240.26,0.03]
[1738339081916,20.0,240.31,240.19,0.03]
[1738339082232,0.78037317,240.3,240.19,0.03]
[1738339083825,20.0,240.31,240.19,0.03]
[1738339084440,0.780303,240.3,240.19,13.44184853]
[1738339084824,20.0,240.31,240.19,13.44184853]
[1738339086849,0.78028327,240.3,240.19,13.44184853]
[1738339087366,20.0,240.31,240.19,13.44184853]
[1738339089355,20.78026789,240.31,240.19,13.44184853]
[1738339089767,1.6223,240.3,240.19,13.44184853]
[1738339090255,1.6853,240.3,240.19,13.44184853]
[1738339090967,0.7803783,240.29,240.19,13.44184853]
[1738339091467,2.46572081,240.3,240.19,13.44184853]
[1738339091835,2.46572081,240.3,240.19,0.03]
[1738339093337,30.0,240.28,240.19,0.03]
[1738339094236,2.46563638,240.3,240.19,0.03]
[1738339094774,2.46563638,240.3,240.16,0.03]
[1738339094959,20.0,240.26,240.16,0.03]
[1738339095136,0.7806621,240.25,240.16,0.03]
[1738339098656,20.0,240.21,240.16,0.03]
[1738339099867,20.0,240.26,240.16,0.03]
[1738339100059,0.78066369,240.25,240.16,0.03]
[1738339101464,7.35575128,240.29,240.16,0.03]
[1738339101465,0.78059844,240.28,240.16,0.03]
[1738339101668,6.3254,240.29,240.16,0.03]
[1738339101969,0.063,240.25,240.16,0.03]
[1738339102758,0.063,240.25,240.17,0.12549]
[1738339102958,0.063,240.25,240.16,13.56733853]
[1738339103646,0.063,240.25,240.16,0.03]
[1738339106571,6.1736,240.24,240.16,0.03]
[1738339107760,0.78057267,240.23,240.16,0.03]
[1738339108080,1.6097,240.2,240.13,0.03]
[1738339108380,2.39043743,240.2,240.13,0.03]
[1738339110779,2.39043743,240.2,240.12,0.03]
[1738339112060,1.6097,240.2,240.12,0.03]
[1738339114153,6.1736,240.24,240.12,0.03]
[1738339114792,0.063,240.2,240.12,0.03]
[1738339115683,0.063,240.2,240.18,13.41184853]
[1738339115987,0.063,240.2,240.19,16.63184853]
[1738339117393,0.063,240.2,240.12,0.03]
[1738339118091,0.063,240.2,240.14,13.41184853]
[1738339118280,0.063,240.2,240.14,13.53733853]
[1738339118478,0.063,240.2,240.18,13.41184853]
[1738339118680,0.063,240.2,240.19,0.12549]
[1738339119682,0.063,240.2,240.19,0.25098]
[1738339119993,0.063,240.2,240.19,150.66282853]
[1738339120175,0.063,240.2,240.19,157.17142853]
[1738339120602,0.063,240.2,240.19,469.17142853]
[1738339121272,0.063,240.2,240.19,470.17142853]
[1738339121488,0.063,240.2,240.19,469.17142853]
[1738339122000,0.063,240.2,240.19,332.04593853]
[1738339122777,0.063,240.2,240.19,332.17142853]
[1738339123306,0.063,240.25,240.21,0.12549]
[1738339126406,0.063,240.25,240.24,325.41184853]
[1738339126601,0.063,240.25,240.24,328.59184853]
[1738339128516,0.063,240.25,240.24,16.59184853]
[1738339128981,0.063,240.25,240.24,13.41184853]
[1738339129185,0.063,240.25,240.24,16.59184853]
[1738339129809,0.063,240.25,240.24,153.84282853]
[1738339130117,0.063,240.25,240.24,155.90197229]
[1738339130278,0.063,240.25,240.24,161.06447229]
[1738339130480,0.063,240.25,240.24,161.31545229]
[1738339130802,0.063,240.25,240.24,191.31545229]
[1738339131110,1.5822,240.44,240.33,13.53733853]
[1738339131290,1.5822,240.44,240.33,150.53733853]
[1738339131494,1.5822,240.44,240.39,312.0]
[1738339134103,1.5822,240.44,240.34,13.41184853]
[1738339135589,1.5822,240.44,240.35,3.16]
[1738339136115,1.5822,240.44,240.36,13.41184853]
[1738339136292,1.5822,240.44,240.26,13.41184853]
[1738339136497,22.36203662,240.44,240.28,13.41184853]
[1738339137087,22.36203662,240.44,240.3,20.0]
[1738339137395,22.36203662,240.44,240.32,13.41184853]
[1738339137998,21.5822,240.44,240.32,13.41184853]
[1738339138202,1.5822,240.44,240.32,13.41184853]
[1738339138809,2.36210458,240.44,240.32,13.41184853]
[1738339139009,22.36210458,240.44,240.32,13.41184853]
[1738339139391,6.3672,240.43,240.32,13.41184853]
[1738339139601,20.0,240.4,240.26,13.41184853]
[1738339139811,20.0,240.4,240.27,3.14]
[1738339140118,20.0,240.4,240.29,13.41184853]
[1738339140327,0.78004356,240.39,240.28,3.14]
[1738339140532,1.6541,240.38,240.22,13.41184853]
[1738339140821,0.78017373,240.37,240.22,16.55184853]
[1738339141208,0.78017373,240.37,240.23,23.14]
[1738339141603,6.1191,240.36,240.23,20.0]
[1738339141804,0.78030333,240.35,240.23,20.0]
[1738339143428,0.78030333,240.35,240.24,13.41184853]
[1738339143999,6.1191,240.36,240.24,13.41184853]
[1738339146299,0.78017253,240.35,240.24,13.41184853]
[1738339146526,0.78017253,240.35,240.22,3.14]
[1738339146722,20.0,240.33,240.18,13.41184853]
[1738339147029,1.5132,240.31,240.2,13.41184853]
[1738339147239,0.78039509,240.3,240.2,13.41184853]
[1738339147439,0.78039509,240.3,240.14,1.31046427]
[1738339147440,0.78039509,240.3,240.13,0.03]
[1738339147737,6.1297,240.29,240.15,13.41184853]
[1738339147947,0.78052595,240.28,240.15,13.41184853]
[1738339148305,20.0,240.26,240.14,13.41184853]
[1738339148615,0.78052038,240.25,240.14,13.41184853]
[1738339151617,0.78052038,240.25,240.13,0.03]
[1738339151618,1.6429,240.24,240.13,0.03]
[1738339151820,0.78066923,240.23,240.13,0.03]
[1738339154308,6.2504,240.22,240.13,0.03]
[1738339154519,0.78067119,240.21,240.13,0.03]
[1738339155330,7.03104774,240.22,240.13,0.03]
[1738339155528,6.2504,240.22,240.13,0.03]
[1738339156841,0.78064867,240.21,240.13,0.03]
[1738339157238,7.03103775,240.22,240.13,0.03]
[1738339157949,20.0,240.19,240.13,0.03]
[1738339158131,0.78079758,240.18,240.13,0.03]
[1738339159627,20.0,240.19,240.13,0.03]
[1738339160612,0.78075713,240.21,240.13,0.03]
[1738339160818,6.2504,240.22,240.13,0.03]
[1738339161025,0.78059604,240.21,240.13,0.03]
[1738339161236,6.2504,240.22,240.13,0.03]
[1738339162553,1.6429,240.24,240.13,0.03]
[1738339162754,7.9911,240.29,240.18,13.41184853]
[1738339162957,7.9911,240.29,240.19,3.1]
[1738339163452,7.9911,240.29,240.2,13.41184853]
[1738339163751,0.063,240.3,240.2,13.41184853]
[1738339164453,0.063,240.3,240.24,13.41184853]
[1738339166129,0.063,240.3,240.2,13.41184853]
[1738339166458,0.063,240.3,240.27,312.0]
[1738339166869,0.063,240.3,240.28,13.41184853]
[1738339173157,0.063,240.3,240.26,0.25098]
[1738339173365,0.063,240.3,240.29,33.41184853]
[1738339174758,0.063,240.3,240.29,13.41184853]
[1738339174964,0.063,240.3,240.27,13.41184853]
[1738339175167,0.063,240.3,240.28,3.06]
[1738339176266,0.063,240.3,240.29,13.41184853]
[1738339176758,0.063,240.3,240.29,325.41184853]
[1738339178746,0.063,240.3,240.29,312.0]
[1738339178954,0.063,240.3,240.22,6.4706]
[1738339178955,0.063,240.3,240.22,13.41184853]
[1738339181969,0.063,240.3,240.22,325.41184853]
[1738339183066,0.063,240.3,240.17,13.41184853]
[1738339183067,0.84335704,240.3,240.17,13.41184853]
[1738339183268,0.84335704,240.3,240.13,13.44184853]
[1738339183444,0.84335704,240.3,240.19,13.41184853]
[1738339184168,0.063,240.3,240.19,13.41184853]
[1738339184357,0.84327649,240.3,240.19,13.41184853]
[1738339184565,0.063,240.3,240.19,13.41184853]
[1738339185070,0.78035943,240.29,240.13,13.44184853]
[1738339185265,0.78035943,240.29,240.18,3.04]
[1738339185467,0.78035943,240.29,240.15,13.41184853]
[1738339185663,0.78035943,240.29,240.15,16.45184853]
[1738339185858,0.78035943,240.29,240.16,13.41184853]
[1738339186067,0.84350513,240.3,240.16,13.41184853]
[1738339186681,0.84350513,240.3,240.15,3.04]
[1738339186977,0.84350513,240.3,240.19,0.03]
[1738339187367,20.84350513,240.3,240.19,0.03]
[1738339188383,20.0,240.26,240.19,0.03]
[1738339188568,20.0,240.21,240.13,0.03]
[1738339188774,0.78073201,240.2,240.13,0.03]
[1738339189664,20.0,240.21,240.13,0.03]
[1738339192589,0.78064717,240.2,240.13,0.03]
[1738339193481,20.0,240.21,240.13,0.03]
[1738339194460,7.9865,240.24,240.13,0.03]
[1738339195963,1.5371,240.29,240.17,13.41184853]
[1738339196662,20.0,240.28,240.17,13.41184853]
[1738339196867,1.5371,240.29,240.17,13.41184853]
[1738339198775,20.0,240.28,240.14,13.41184853]
[1738339199488,20.0,240.28,240.18,312.0]
[1738339200134,20.0,240.28,240.13,0.03]
[1738339200523,20.7804013,240.28,240.13,0.03]
[1738339201775,20.7804013,240.28,240.14,3.06]
[1738339201981,20.7804013,240.28,240.15,13.41184853]
[1738339202789,20.7804013,240.28,240.14,3.06]
[1738339202790,21.7804013,240.28,240.14,3.06]
[1738339203105,20.7804013,240.28,240.15,13.41184853]
[1738339203697,20.7804013,240.28,240.13,0.03]
[1738339206709,22.59158143,240.29,240.13,0.03]
[1738339207012,20.0,240.24,240.13,0.03]
[1738339207813,1.6217,240.23,240.13,0.03]
[1738339208492,1.6217,240.23,240.13,0.0001]
[1738339211087,0.063,240.28,240.14,13.41184853]
[1738339211411,0.063,240.28,240.16,13.41184853]
[1738339211982,0.063,240.28,240.15,13.41184853]
[1738339212793,0.063,240.28,240.16,3.12]
[1738339215321,0.063,240.28,240.17,0.25098]
[1738339215707,0.063,240.28,240.16,3.12]
[1738339216906,0.063,240.28,240.17,13.41184853]
[1738339217113,1.6531,240.26,240.12,0.0001]
[1738339217405,20.0,240.24,240.12,0.0001]
[1738339217725,0.78064652,240.23,240.12,0.0001]
[1738339218023,20.0,240.24,240.12,0.0001]
[1738339218227,20.0,240.24,240.13,13.41184853]
[1738339219229,2.4337068,240.26,240.13,13.41184853]
[1738339219230,1.6531,240.26,240.13,13.41184853]
[1738339219426,1.6531,240.26,240.14,0.25098]
[1738339219732,0.063,240.28,240.17,13.41184853]
[1738339219906,0.063,240.28,240.13,13.41184853]
[1738339221436,0.063,240.24,240.13,13.41184853]
[1738339221803,0.063,240.24,240.15,13.41184853]
[1738339223234,0.063,240.24,240.15,0.12549]
[1738339223831,0.063,240.24,240.14,13.66282853]
[1738339224148,0.063,240.24,240.13,13.41184853]
[1738339224642,1.5902,240.23,240.12,0.0001]
[1738339224812,8.1458,240.23,240.12,0.0001]
[1738339226249,8.1458,240.23,240.14,13.41184853]
[1738339226452,1.5902,240.23,240.14,13.41184853]
[1738339227448,1.5902,240.23,240.14,150.41184853]
[1738339227651,1.5902,240.23,240.15,0.25098]
[1738339227839,0.063,240.24,240.15,0.25098]
[1738339228038,0.063,240.24,240.16,13.41184853]
[1738339228239,0.063,240.24,240.17,0.37647]
[1738339228443,0.063,240.24,240.18,13.41184853]
[1738339230650,0.063,240.24,240.18,16.85184853]
[1738339231753,0.063,240.24,240.18,13.41184853]
[1738339232743,0.063,240.24,240.14,13.41184853]
[1738339232949,0.063,240.24,240.16,13.41184853]
[1738339239752,0.063,240.24,240.14,13.41184853]
[1738339239965,0.063,240.24,240.16,3.42]
[1738339243261,0.063,240.24,240.17,13.41184853]
[1738339244866,0.063,240.24,240.14,13.41184853]
[1738339245057,1.6238,240.23,240.14,13.41184853]
[1738339245366,0.78064999,240.22,240.12,0.0001]
[1738339245548,6.3073,240.21,240.12,0.0001]
[1738339245744,0.78080904,240.2,240.12,0.0001]
[1738339247036,6.3073,240.21,240.12,0.0001]
[1738339250683,6.3073,240.21,240.12,13.41194853]
[1738339250885,1.6238,240.23,240.12,13.41194853]
[1738339251388,1.6238,240.23,240.16,13.41184853]
[1738339251546,0.063,240.24,240.16,13.41184853]
[1738339253279,0.063,240.24,240.16,13.41184853]
[1738339254297,0.063,240.24,240.17,0.12549]
[1738339254780,0.063,240.24,240.18,13.41184853]
[1738339255706,0.063,240.24,240.21,0.37647]
[1738339255996,0.063,240.24,240.23,13.41184853]
[1738339260198,0.063,240.24,240.23,3.46]
[1738339261310,0.063,240.24,240.23,16.87184853]
[1738339263607,7.8629,240.23,240.12,0.0001]
[1738339263806,7.8629,240.23,240.13,13.41184853]
[1738339264179,1.6624,240.23,240.13,13.41184853]
[1738339264383,0.063,240.24,240.17,13.41184853]
[1738339266586,0.063,240.24,240.13,13.41184853]
[1738339266791,0.84360342,240.24,240.13,13.41184853]
[1738339267500,0.84360342,240.24,240.12,0.0001]
[1738339267704,1.5863,240.23,240.12,0.0001]
[1738339268007,0.7806568,240.22,240.12,0.0001]
[1738339268375,1.5863,240.23,240.12,0.0001]
[1738339268916,1.5863,240.23,240.13,13.41184853]
[1738339269786,1.5863,240.23,240.12,0.0001]
[1738339270605,0.063,240.24,240.12,0.0001]
[1738339270809,1.5002,240.23,240.12,0.0001]
[1738339273383,0.063,240.24,240.12,0.0001]
[1738339273889,0.063,240.24,240.14,13.41184853]
[1738339275311,0.063,240.24,240.15,13.41184853]
[1738339276623,0.063,240.24,240.15,150.41184853]
[1738339276825,0.063,240.24,240.16,0.25098]
[1738339277219,0.063,240.24,240.15,150.41184853]
[1738339277400,0.063,240.24,240.14,13.41184853]
[1738339277612,20.0,240.2,240.14,13.41184853]
[1738339277810,1.5377,240.19,240.12,0.0001]
[1738339281022,20.0,240.2,240.12,0.0001]
[1738339281833,0.7805686,240.19,240.12,0.0001]
[1738339282135,1.637,240.18,240.12,0.0001]
[1738339282344,0.78082309,240.17,240.12,0.0001]
[1738339283332,6.4009,240.16,240.12,0.0001]
[1738339283605,1.6002,240.12,240.04,13.41184853]
[1738339283806,1.6002,240.12,240.03,6.40545705]
[1738339283807,20.0,240.08,240.03,6.40545705]
[1738339284038,20.0,240.08,239.99,13.41184853]
[1738339284039,0.7811758,240.07,239.99,13.41184853]
[1738339284342,0.7811758,240.07,239.97,6.40815607]
[1738339284343,1.6002,240.06,239.97,6.40815607]
[1738339284543,20.0,240.02,239.97,6.40815607]
[1738339284712,20.0,239.98,239.97,6.40815607]
[1738339285141,6.4009,240.0,239.97,6.40815607]
[1738339285738,8.0011,240.06,239.97,6.40815607]
[1738339286038,1.6002,240.06,239.97,6.40815607]
[1738339286220,6.4009,240.11,239.98,13.41184853]
[1738339286605,6.2207,240.17,240.02,13.53733853]
[1738339286811,6.2207,240.17,240.06,13.41184853]
[1738339287042,1.5106,240.19,240.1,13.41184853]
[1738339287245,1.5106,240.19,240.07,13.53733853]
[1738339287438,1.5106,240.19,240.11,13.41184853]
[1738339287948,6.2837,240.24,240.11,13.41184853]
[1738339288313,7.06426734,240.24,240.11,13.41184853]
[1738339288815,7.06426734,240.24,240.09,3.56]
[1738339289020,20.0,240.21,240.1,13.41184853]
[1738339289443,0.7806002,240.2,240.1,13.41184853]
[1738339289763,0.7806002,240.2,240.08,13.41184853]
[1738339291035,20.0,240.21,240.08,13.41184853]
[1738339292164,0.78062063,240.2,240.08,13.41184853]
[1738339293367,0.78062063,240.2,240.05,13.41184853]
[1738339293572,0.78062063,240.2,240.05,16.95184853]
[1738339294252,1.5644,240.19,240.03,134.7]
[1738339294475,1.5644,240.19,240.05,0.03]
[1738339294476,0.7809353,240.18,240.05,0.03]
[1738339295168,1.5644,240.19,240.06,13.41184853]
[1738339295352,1.5644,240.19,240.07,0.12549]
[1738339295671,1.5644,240.19,240.1,33.53733853]
[1738339295847,6.2837,240.24,240.1,168.23733853]
[1738339297285,6.2837,240.24,240.1,168.11184853]
[1738339297869,6.2837,240.24,240.11,0.25098]
[1738339299561,6.2837,240.24,240.1,168.11184853]
[1738339300274,6.2837,240.24,240.13,13.41184853]
[1738339300578,0.78055159,240.23,240.13,13.41184853]
[1738339301883,0.78055159,240.23,240.11,13.41184853]
[1738339302056,20.0,240.21,240.11,13.41184853]
[1738339302249,0.78081414,240.2,240.07,13.41184853]
[1738339303555,0.78081414,240.2,240.05,0.03]
[1738339303556,1.5187,240.19,240.05,0.03]
[1738339303777,20.0,240.15,240.05,0.03]
[1738339303982,0.78091048,240.14,240.05,0.03]
[1738339305866,1.6125,240.13,239.99,13.41184853]
[1738339306092,1.6125,240.13,239.94,134.73]
[1738339306093,20.0,240.08,239.95,13.41184853]
[1738339306264,0.78118502,240.07,239.99,0.03]
[1738339307292,13.441848,240.06,239.99,0.03]
[1738339307488,0.78122908,240.05,239.99,0.03]
[1738339307692,20.0,240.03,239.94,0.03]
[1738339307994,0.78129563,240.02,239.94,0.03]
[1738339308188,1.5179,240.01,239.94,0.03]
[1738339311275,15.050648,240.06,239.94,0.03]
[1738339311498,1.6088,240.06,239.94,0.03]
[1738339311970,0.78117454,240.05,239.94,0.03]
[1738339313882,0.78122348,240.07,239.94,0.03]
[1738339315896,7.6604,240.11,239.98,13.41184853]
[1738339315897,0.78119399,240.1,239.98,13.41184853]
[1738339316100,7.6604,240.09,239.98,13.41184853]
[1738339316309,0.78112491,240.08,239.95,33.41184853]
[1738339316509,20.0,240.08,239.95,33.41184853]
[1738339316715,0.78106871,240.07,239.95,33.41184853]
[1738339317017,0.78106871,240.07,239.94,0.03]
[1738339318119,27.6604,240.08,239.96,13.41184853]
[1738339318120,7.6604,240.08,239.96,13.41184853]
[1738339318294,0.78120986,240.1,239.96,13.41184853]
[1738339318907,13.411848,240.09,239.96,13.41184853]
[1738339319100,0.78122784,240.08,239.98,0.03]
[1738339319602,20.0,240.06,239.98,0.03]
[1738339319840,0.78127214,240.05,239.98,0.03]
[1738339321534,1.5666,240.04,239.98,0.03]
[1738339321739,6.80928699,240.03,239.94,0.03]
[1738339323505,6.0279,240.03,239.94,0.03]
[1738339323840,13.411848,240.09,239.97,13.41184853]
[1738339324012,13.411848,240.09,240.01,13.41184853]
[1738339324433,0.84392026,240.14,240.01,13.41184853]
[1738339325740,20.0,240.12,240.0,13.41184853]
[1738339325917,0.78106608,240.11,240.0,13.41184853]
[1738339326116,0.78106608,240.11,239.97,13.41184853]
[1738339326334,1.6478,240.1,239.96,134.7]
[1738339326512,0.78124644,240.09,239.94,0.03]
[1738339327549,20.0,240.05,239.94,0.03]
[1738339327742,2.28706497,240.04,239.94,0.03]
[1738339328551,1.5056,240.04,239.94,0.03]
[1738339328750,0.7812457,240.07,239.94,0.03]
[1738339328955,6.12,240.08,239.94,0.03]
[1738339329253,6.12,240.08,239.97,13.41184853]
[1738339329767,6.90099167,240.08,239.97,13.41184853]
[1738339330551,6.90099167,240.08,239.95,13.41184853]
[1738339330943,6.90099167,240.08,239.94,134.73]
[1738339330944,6.90099167,240.08,239.94,0.03]
[1738339331156,20.0,240.05,239.94,0.03]
[1738339331345,2.28248063,240.04,239.94,0.03]
[1738339331859,20.0,239.99,239.89,0.03]
[1738339332035,0.78155746,239.98,239.89,0.03]
[1738339332559,1.5315,239.97,239.89,0.03]
[1738339332726,0.78166486,239.96,239.89,0.03]
[1738339334455,20.0,239.92,239.74,13.44184853]
[1738339334632,20.0,239.88,239.74,13.44184853]
[1738339334833,0.78191274,239.87,239.74,13.44184853]
[1738339335659,0.78179726,239.9,239.74,13.44184853]
[1738339335865,0.78179726,239.9,239.78,13.41184853]
[1738339336157,0.78169059,239.94,239.81,20.0]
[1738339336363,0.78169059,239.94,239.82,13.41184853]
[1738339337466,0.78150308,239.94,239.82,13.41184853]
[1738339337848,1.5535,239.95,239.85,20.0]
[1738339338058,8.0732,240.0,239.87,13.41184853]
[1738339338242,8.0732,240.0,239.91,13.41184853]
[1738339339359,6.4106,240.06,239.91,13.41184853]
[1738339339556,0.78117593,240.05,239.91,13.41184853]
[1738339340239,20.0,240.03,239.91,16.83184853]
[1738339340439,0.78140257,240.02,239.91,16.83184853]
[1738339342348,0.78140257,240.02,239.89,3.4]
[1738339343160,1.6255,240.01,239.89,3.4]
[1738339343467,0.78153528,240.0,239.89,3.4]
[1738339344172,0.78153528,240.0,239.9,13.41184853]
[1738339344556,0.78153528,240.0,239.89,3.4]
[1738339345367,0.78153528,240.0,239.9,13.41184853]
[1738339345746,1.6255,240.01,239.9,13.41184853]
[1738339346093,0.78133422,240.0,239.9,13.41184853]
[1738339346254,0.063,240.02,239.9,13.41184853]
[1738339346550,0.84431239,240.02,239.9,13.41184853]
[1738339346750,0.063,240.02,239.9,13.41184853]
[1738339347741,0.063,240.02,239.94,13.41184853]
[1738339349773,0.063,240.02,239.94,3.38]
[1738339349997,0.84428926,240.02,239.94,3.38]
[1738339350792,0.84428926,240.02,239.92,3.38]
[1738339351199,1.6588,240.01,239.85,3.41]
[1738339351502,0.78150016,240.0,239.85,16.82184853]
[1738339351883,0.78150016,240.0,239.87,13.41184853]
[1738339352274,6.0596,239.99,239.87,13.41184853]
[1738339352493,0.78154127,239.98,239.87,13.41184853]
[1738339353070,0.78154127,239.98,239.86,3.06265175]
[1738339353288,20.0,239.96,239.85,3.41]
[1738339353489,0.78168204,239.95,239.85,3.41]
[1738339353685,0.78168204,239.95,239.85,0.03]
[1738339355817,30.0,239.94,239.85,0.03]
[1738339356105,0.78167311,239.93,239.85,0.03]
[1738339356604,30.7816697,239.94,239.85,0.03]
[1738339356808,0.78151514,239.93,239.85,0.03]
[1738339357684,0.78151514,239.93,239.85,13.44184853]
[1738339358686,28.353015,239.94,239.85,13.44184853]
[1738339358881,0.78149384,239.95,239.85,13.44184853]
[1738339359087,0.78149384,239.93,239.85,13.44184853]
[1738339359575,0.78149384,239.93,239.85,0.03]
[1738339359774,1.5833,239.92,239.85,0.03]
[1738339359973,0.78180777,239.91,239.8,0.03]
[1738339360177,0.78180777,239.91,239.8,13.44184853]
[1738339360906,0.78180777,239.91,239.8,0.03]
[1738339361115,1.5743,239.86,239.72,13.41184853]
[1738339361300,0.78200846,239.85,239.69,13.41184853]
[1738339361792,1.80537783,239.85,239.69,13.41184853]
[1738339361988,0.78200846,239.85,239.69,13.41184853]
[1738339362313,20.0,239.81,239.69,13.41184853]
[1738339362605,0.7820561,239.8,239.69,13.41184853]
[1738339363008,20.0,239.81,239.69,13.41184853]
[1738339363306,0.78195008,239.8,239.69,13.41184853]
[1738339364083,0.78195008,239.8,239.68,13.41184853]
[1738339364921,0.78195008,239.8,239.65,20.0]
[1738339365087,0.78195008,239.8,239.63,13.56733853]
[1738339365088,0.78195008,239.8,239.68,3.62]
[1738339365284,30.0,239.84,239.73,20.0]
[1738339365486,30.0,239.84,239.74,13.44184853]
[1738339365685,1.5743,239.86,239.74,13.44184853]
[1738339367718,6.3746,239.9,239.74,13.44184853]
[1738339368010,1.5023,239.92,239.78,13.41184853]
[1738339368213,0.7816363,239.91,239.78,13.41184853]
[1738339368395,1.5023,239.92,239.78,13.41184853]
[1738339368912,1.5023,239.92,239.82,13.41184853]
[1738339369116,0.78164242,239.91,239.82,13.41184853]
[1738339369502,2.28402981,239.92,239.82,13.41184853]
[1738339369896,2.28392316,239.92,239.82,13.41184853]
[1738339371015,2.28392316,239.92,239.84,13.41184853]
[1738339371016,1.5023,239.92,239.84,13.41184853]
[1738339373324,0.78162162,239.91,239.84,13.41184853]
[1738339373504,0.063,240.02,239.84,13.41184853]
[1738339373818,0.063,240.02,239.88,13.41184853]
[1738339374620,0.84437002,240.02,239.88,13.41184853]
[1738339375508,20.0,239.97,239.84,13.41184853]
[1738339375708,0.78155212,239.96,239.84,13.41184853]
[1738339376428,0.78150359,239.99,239.84,13.41184853]
[1738339378517,6.84414408,240.0,239.88,13.41184853]
[1738339379331,6.0627,240.0,239.88,13.41184853]
[1738339379946,1.6291,240.01,239.92,13.41184853]
[1738339380942,0.063,240.02,239.96,13.41184853]
[1738339381646,0.063,240.02,240.0,13.41184853]
[1738339381808,0.063,240.02,239.96,13.41184853]
[1738339381809,0.063,240.02,240.01,16.95184853]
[1738339382326,0.063,240.02,240.01,13.41184853]
[1738339382522,0.063,240.02,240.01,16.95184853]
[1738339384247,0.063,240.09,240.02,13.53733853]
[1738339384542,0.063,240.09,240.02,149.91184853]
[1738339386645,0.063,240.09,240.01,3.54]
[1738339387248,0.063,240.09,239.98,0.08469656]
[1738339387464,0.063,240.09,239.99,13.41184853]
[1738339390237,0.063,240.09,240.01,13.41184853]
[1738339391339,0.063,240.09,239.98,0.08469656]
[1738339391656,0.063,240.09,239.99,3.48]
[1738339392160,0.063,240.09,240.0,16.89184853]
[1738339392545,0.063,240.09,240.01,0.12549]
[1738339392739,0.063,240.09,240.01,13.41184853]
[1738339394658,0.063,240.09,240.03,13.41184853]
[1738339395487,0.063,240.09,239.99,13.41184853]
[1738339395652,0.063,240.09,240.01,13.41184853]
[1738339402891,0.063,240.09,240.01,13.44184853]
[1738339410664,0.063,240.09,240.01,3.45]
[1738339410904,7.38266793,240.09,239.98,0.08469656]
[1738339411110,1.5569,240.05,239.96,13.41184853]
[1738339411405,0.7812843,240.04,239.94,3.44]
[1738339411574,2.33815244,240.05,239.94,3.44]
[1738339412172,0.78117212,240.08,239.95,0.25098]
[1738339412390,0.063,240.09,239.99,20.12549]
[1738339412785,0.063,240.09,240.0,0.12549]
[1738339412986,0.063,240.09,239.96,1.666]
[1738339413188,0.063,240.09,239.97,3.44]
[1738339413392,0.063,240.09,239.92,136.5]
[1738339413593,0.063,240.09,239.93,13.41184853]
[1738339413975,0.063,240.09,239.97,13.41184853]
[1738339415199,6.2319,240.08,239.95,20.0]
[1738339415399,20.0,240.05,239.93,0.03]
[1738339416698,0.78127094,240.07,239.93,0.03]
[1738339418188,0.78127094,240.07,239.93,13.44184853]